{"text_format":"1","workbook":"xlsx","n_sheets":1,"sheets":["PIANO FINANZIARIO PREVENTIVO"],"not_rendered":{"charts":0,"images":0,"macros":1,"external_links":0,"defined_names":1,"comments":0,"pivot_tables":0},"unopened":[],"bounds":{"document_bytes":16777216,"sheet_cells":100000,"rows_first":2000,"rows_last":500,"rows_between":2000,"halvings":0,"cell_chars":16384,"cell_head_chars":4096},"cells_cut":0,"cells_raw":0,"read":"whole","date_system":"1900"}

{"sheet":"PIANO FINANZIARIO PREVENTIVO","index":0,"n_rows":130,"n_cols":13,"rows_kept":130,"cut":false,"hidden":false,"merged":[[100,3,100,7],[108,3,108,7],[120,3,120,7],[128,3,128,7],[2,1,2,2],[48,3,48,7],[40,3,40,7],[68,3,68,7],[20,3,20,7],[28,3,28,7],[60,3,60,7],[88,3,88,7],[80,3,80,7]]}
[]
[]
[null,"“Fondo Nazionale delle Politiche Sociali (FNPS)2021. Interventi relativi alle politiche giovanili",null,"IMPORTO","Importo a carico del PLUS","cofinanziamento a carico dell'OTS"]
[null,"AZIONE 1","(INDICARE IL TITOLO)"]
[null,"AZIONE 2","(INDICARE IL TITOLO)"]
[null,"AZIONE 3","(INDICARE IL TITOLO)"]
[null,"AZIONE 4","(INDICARE IL TITOLO)"]
[null,"AZIONE 5","(INDICARE IL TITOLO)"]
[null,"AZIONE 6","(INDICARE IL TITOLO)"]
[null,null,"TOTALE PROGETTO",{"$f":"SUM(D4+D5+D6+D9)","v":0},{"$f":"SUM(E4+E5+E6+E9)","v":0},{"$f":"SUM(F4+F5+F6+F9)","v":0}]
[]
[]
[null,"AZIONE 1\n….. (indicare titolo)","A) PERSONALE","N° ","ore sett","n° settimane","totale ore progetto","costo ora","totale progetto IVA esclusa","IVA","totale IVA inclusa","Importo a carico del PLUS","cofinanziamento a carico dell'OTS"]
[]
[]
[]
[]
[]
[]
[]
[null,null,"TOTALE PERSONALE AZIONE….",null,null,null,null,null,{"$f":"SUM(I14:I16)","v":0},"-",{"$f":"SUM(K14:K16)","v":0},{"$f":"SUM(L14:L16)","v":0},{"$f":"SUM(M14:M16)","v":0}]
[null,null,"B) SPESE GESTIONE","n° beneficiari previsti","n° ","costo unitario","altro (indicare)","altro (indicare)","totale annuo IVA esclusa","IVA","totale IVA inclusa","Importo a carico del PLUS","cofinanziamento a carico dell'OTS"]
[]
[]
[]
[]
[]
[]
[null,null,"TOTALE SPESE DI GESTIONE AZIONE",null,null,null,null,null,{"$f":"SUM(I23:I28)","v":0},null,{"$f":"SUM(K23:K26)","v":0},{"$f":"SUM(L23:L26)","v":0},{"$f":"SUM(M23:M26)","v":0}]
[null,null,"TOTALE COMPLESSIVO AZIONE ….. (A+B)",null,null,null,null,null,{"$f":"I21+I29","v":0},null,{"$f":"K21+K29","v":0},{"$f":"L21+L29","v":0},{"$f":"M21+M29","v":0}]
[]
[]
[null,"AZIONE 2\n…..","A) PERSONALE","N° ","ore sett","n° settimane","totale ore progetto","costo ora","totale progetto IVA esclusa","IVA","totale IVA inclusa","Importo a carico del PLUS","cofinanziamento a carico dell'OTS"]
[]
[]
[]
[]
[]
[]
[]
[null,null,"TOTALE PERSONALE AZIONE….",null,null,null,null,null,{"$f":"SUM(I34:I36)","v":0},"-",{"$f":"SUM(K34:K36)","v":0},{"$f":"SUM(L34:L36)","v":0},{"$f":"SUM(M34:M36)","v":0}]
[null,null,"B) SPESE GESTIONE","n° beneficiari previsti","n° ","costo unitario","altro (indicare)","altro (indicare)","totale annuo IVA esclusa","IVA","totale IVA inclusa","Importo a carico del PLUS","cofinanziamento a carico dell'OTS"]
[]
[]
[]
[]
[]
[]
[null,null,"TOTALE SPESE DI GESTIONE AZIONE",null,null,null,null,null,{"$f":"SUM(I43:I48)","v":0},null,{"$f":"SUM(K43:K46)","v":0},{"$f":"SUM(L43:L46)","v":0},{"$f":"SUM(M43:M46)","v":0}]
[null,null,"TOTALE COMPLESSIVO AZIONE ….. (A+B)",null,null,null,null,null,{"$f":"I41+I49","v":0},null,{"$f":"K41+K49","v":0},{"$f":"L41+L49","v":0},{"$f":"M41+M49","v":0}]
[]
[]
[null,"AZIONE 3\n…..","A) PERSONALE","N° ","ore sett","n° settimane","totale ore progetto","costo ora","totale progetto IVA esclusa","IVA","totale IVA inclusa","Importo a carico del PLUS","cofinanziamento a carico dell'OTS"]
[]
[]
[]
[]
[]
[]
[]
[null,null,"TOTALE PERSONALE AZIONE….",null,null,null,null,null,{"$f":"SUM(I54:I56)","v":0},"-",{"$f":"SUM(K54:K56)","v":0},{"$f":"SUM(L54:L56)","v":0},{"$f":"SUM(M54:M56)","v":0}]
[null,null,"B) SPESE GESTIONE","n° beneficiari previsti","n° ","costo unitario","altro (indicare)","altro (indicare)","totale annuo IVA esclusa","IVA","totale IVA inclusa","Importo a carico del PLUS","cofinanziamento a carico dell'OTS"]
[]
[]
[]
[]
[]
[]
[null,null,"TOTALE SPESE DI GESTIONE AZIONE",null,null,null,null,null,{"$f":"SUM(I63:I68)","v":0},null,{"$f":"SUM(K63:K66)","v":0},{"$f":"SUM(L63:L66)","v":0},{"$f":"SUM(M63:M66)","v":0}]
[null,null,"TOTALE COMPLESSIVO AZIONE ….. (A+B)",null,null,null,null,null,{"$f":"I61+I69","v":0},null,{"$f":"K61+K69","v":0},{"$f":"L61+L69","v":0},{"$f":"M61+M69","v":0}]
[]
[]
[null,"AZIONE 4\n…..","A) PERSONALE","N° ","ore sett","n° settimane","totale ore progetto","costo ora","totale progetto IVA esclusa","IVA","totale IVA inclusa","Importo a carico del PLUS","cofinanziamento a carico dell'OTS"]
[]
[]
[]
[]
[]
[]
[]
[null,null,"TOTALE PERSONALE AZIONE….",null,null,null,null,null,{"$f":"SUM(I74:I76)","v":0},"-",{"$f":"SUM(K74:K76)","v":0},{"$f":"SUM(L74:L76)","v":0},{"$f":"SUM(M74:M76)","v":0}]
[null,null,"B) SPESE GESTIONE","n° beneficiari previsti","n° ","costo unitario","altro (indicare)","altro (indicare)","totale annuo IVA esclusa","IVA","totale IVA inclusa","Importo a carico del PLUS","cofinanziamento a carico dell'OTS"]
[]
[]
[]
[]
[]
[]
[null,null,"TOTALE SPESE DI GESTIONE AZIONE",null,null,null,null,null,{"$f":"SUM(I83:I88)","v":0},null,{"$f":"SUM(K83:K86)","v":0},{"$f":"SUM(L83:L86)","v":0},{"$f":"SUM(M83:M86)","v":0}]
[null,null,"TOTALE COMPLESSIVO AZIONE ….. (A+B)",null,null,null,null,null,{"$f":"I81+I89","v":0},null,{"$f":"K81+K89","v":0},{"$f":"L81+L89","v":0},{"$f":"M81+M89","v":0}]
[]
[]
[null,"AZIONE 5\n…..","A) PERSONALE","N° ","ore sett","n° settimane","totale ore progetto","costo ora","totale progetto IVA esclusa","IVA","totale IVA inclusa","Importo a carico del PLUS","cofinanziamento a carico dell'OTS"]
[]
[]
[]
[]
[]
[]
[]
[null,null,"TOTALE PERSONALE AZIONE….",null,null,null,null,null,{"$f":"SUM(I94:I96)","v":0},"-",{"$f":"SUM(K94:K96)","v":0},{"$f":"SUM(L94:L96)","v":0},{"$f":"SUM(M94:M96)","v":0}]
[null,null,"B) SPESE GESTIONE","n° beneficiari previsti","n° ","costo unitario","altro (indicare)","altro (indicare)","totale annuo IVA esclusa","IVA","totale IVA inclusa","Importo a carico del PLUS","cofinanziamento a carico dell'OTS"]
[]
[]
[]
[]
[]
[]
[null,null,"TOTALE SPESE DI GESTIONE AZIONE",null,null,null,null,null,{"$f":"SUM(I103:I108)","v":0},null,{"$f":"SUM(K103:K106)","v":0},{"$f":"SUM(L103:L106)","v":0},{"$f":"SUM(M103:M106)","v":0}]
[null,null,"TOTALE COMPLESSIVO AZIONE ….. (A+B)",null,null,null,null,null,{"$f":"I101+I109","v":0},null,{"$f":"K101+K109","v":0},{"$f":"L101+L109","v":0},{"$f":"M101+M109","v":0}]
[]
[]
[null,"AZIONE 6\n…..","A) PERSONALE","N° ","ore sett","n° settimane","totale ore progetto","costo ora","totale progetto IVA esclusa","IVA","totale IVA inclusa","Importo a carico del PLUS","cofinanziamento a carico dell'OTS"]
[]
[]
[]
[]
[]
[]
[]
[null,null,"TOTALE PERSONALE AZIONE….",null,null,null,null,null,{"$f":"SUM(I114:I116)","v":0},"-",{"$f":"SUM(K114:K116)","v":0},{"$f":"SUM(L114:L116)","v":0},{"$f":"SUM(M114:M116)","v":0}]
[null,null,"B) SPESE GESTIONE","n° beneficiari previsti","n° ","costo unitario","altro (indicare)","altro (indicare)","totale annuo IVA esclusa","IVA","totale IVA inclusa","Importo a carico del PLUS","cofinanziamento a carico dell'OTS"]
[]
[]
[]
[]
[]
[]
[null,null,"TOTALE SPESE DI GESTIONE AZIONE",null,null,null,null,null,{"$f":"SUM(I123:I128)","v":0},null,{"$f":"SUM(K123:K126)","v":0},{"$f":"SUM(L123:L126)","v":0},{"$f":"SUM(M123:M126)","v":0}]
[null,null,"TOTALE COMPLESSIVO AZIONE ….. (A+B)",null,null,null,null,null,{"$f":"I121+I129","v":0},null,{"$f":"K121+K129","v":0},{"$f":"L121+L129","v":0},{"$f":"M121+M129","v":0}]